Cogmind - Beta 13 X1 @@@ ROGUE MODE // 2023.07.16 @ 20:01:15 Player: cptwinky Result: Destroyed by S-43 Plague with Heavy Machine Gun Performance ------------- Evolutions (8) 4000 Regions Visited (15) 3000 Robots Destroyed (186) 930 Value Destroyed (5918) 5918 Prototype IDs (22) 440 Alien Tech Used (2) 400 Bonus (789) 789 TOTAL SCORE: 15477 Bonus ------- High Alert Combat Kills 331 Follower Combat Kills 430 Met Zhirov 300 Friendly Fire -272 Cogmind --------- Core Integrity 0/1450 Matter 290/300 Energy 100/100 System Corruption 0% Temperature Cool (0) Movement Core (50) Location -2/Research Parts ------- > --- POWER (2) -------- (None) > --- PROPULSION (6) --- Biometal Leg > --- UTILITY (9) ------ Improved Armor Integrity Analyzer > --- WEAPON (6) ------- (None) > --- INVENTORY (5) ---- Large Storage Unit Improved Energy Well (400) Makeshift Transmission Jammer EM Disruption Field Long-range Phase Cannon Peak State ------------ > --- POWER ------------ Light Antimatter Reactor Heavy Antimatter Reactor > --- PROPULSION ------- Improved Titanium Leg Flexi-carbon Leg Flexi-carbon Leg Armored Leg Myomer Leg > --- UTILITY ---------- Large Storage Unit Improved Signal Interpreter Microactuators Makeshift Transmission Jammer Hardened Heavy Armor Plating > --- WEAPON ----------- Flail Heavy Mace Spear Makeshift Spear Makeshift Spear Makeshift Spear > --- INVENTORY -------- Advanced Power Amplifier Advanced Cooling System Improved Energy Well Compact Matter Pod Improved Sensor Array Improved Armor Integrity Analyzer Hardened Heavy Armor Plating EM Disruption Field Hacking Suite Advanced System Shield Transdimensional Reconstructor Heavy Phase Cannon Scatter Rocket Array Scatter Rocket Array [Rating: 91] Favorites ----------- Power Light Antimatter Reactor Engine Heavy Ion Engine Power Core Micro Fission Core Reactor Light Antimatter Reactor Propulsion Armored Leg Treads Light Treads Leg Armored Leg Hover Unit Antigrav System Flight Unit Impulse Thruster Utility Large Storage Unit Device Improved Sensor Array Storage Large Storage Unit Processor Improved Signal Interpreter Protection Hardened Light Armor Plating Weapon Improved Assault Rifle Energy Gun Small Laser Energy Cannon Compact Ion Cannon Ballistic Gun Improved Assault Rifle Ballistic Cannon Light Cannon Launcher Rocket Launcher Impact Weapon Maul Slashing Weapon Greatsword Piercing Weapon Makeshift Spear Build | -11 -10 -10 -9 -9 -8 -7 -6 -5 -5 -5 -5 -4 -4 -3 -2 ------- Run | Jun Mat Min Mat Sto Mat Fac Fac Fac Upp Upp Zhi Pro Fac Res Res Slots Evolved 16 | . . . 2 . 2 2 2 2 . . . . 2 2 2 Power 1 | . . . . . . . . 1 . . . . . . . Propulsion 4 | . . . . . . 1 1 . . . . . 1 . 1 Utility 7 | . . . . . . 1 1 1 . . . . 1 2 1 Weapon 4 | . . . 2 . 2 . . . . . . . . . . Parts Attached 210 | 3 11 . 12 47 35 17 18 3 11 . 7 11 20 9 6 Power 16 | . 1 . 1 5 2 . 2 . 1 . 1 . 2 1 . Engine 11 | . 1 . 1 5 2 . 2 . . . . . . . . Core 1 | . . . . . . . . . . . . . 1 . . Reactor 4 | . . . . . . . . . 1 . 1 . 1 1 . Propulsion 55 | 2 3 . 3 10 7 1 6 . 2 . 2 1 7 5 6 Treads 33 | 2 2 . 3 10 7 1 2 . . . . . . 5 1 Leg 12 | . 1 . . . . . 4 . 2 . 1 1 2 . 1 Wheel . | . . . . . . . . . . . . . . . . Hover 2 | . . . . . . . . . . . 1 . . . 1 Flight 8 | . . . . . . . . . . . . . 5 . 3 Utility 54 | . 3 . 3 8 7 3 7 2 2 . 4 5 7 3 . Device 24 | . 1 . 1 . 1 1 4 2 1 . 2 5 5 1 . Storage 7 | . 1 . 1 2 1 . . . 1 . . . . 1 . Processor 5 | . . . . 1 . 1 1 . . . . . 1 1 . Hackware . | . . . . . . . . . . . . . . . . Protection 18 | . 1 . 1 5 5 1 2 . . . 2 . 1 . . Artifact . | . . . . . . . . . . . . . . . . Weapon 85 | 1 4 . 5 24 19 13 3 1 6 . . 5 4 . . Energy Gun 7 | . . . 1 2 4 . . . . . . . . . . Energy Cannon 6 | . . . . 1 1 3 1 . . . . . . . . Ballistic Gun 30 | 1 3 . 3 16 5 2 . . . . . . . . . Ballistic Cannon 1 | . . . . . 1 . . . . . . . . . . Launcher 7 | . . . 1 1 1 . . 1 . . . 2 1 . . Special Weapon . | . . . . . . . . . . . . . . . . Impact Weapon 23 | . 1 . . 4 7 5 2 . 3 . . 1 . . . Slashing Weapon 1 | . . . . . . 1 . . . . . . . . . Piercing Weapon 10 | . . . . . . 2 . . 3 . . 2 3 . . Special Melee Weapon . | . . . . . . . . . . . . . . . . Unidentified Prototypes 14 | . . . 1 3 2 . . 1 1 . 4 . 2 . . Parts Lost 39 | . 2 . . 1 3 . 3 . 1 . . . 13 1 15 Power 5 | . 1 . . . . . 1 . 1 . . . 1 . 1 Propulsion 16 | . 1 . . . . . . . . . . . 5 . 10 Utility 8 | . . . . . . . 1 . . . . . 4 1 2 Weapon 10 | . . . . 1 3 . 1 . . . . . 3 . 2 Highest Loss Streak 15 | . 1 . . 1 1 . 2 . 1 . . . 7 1 15 To Critical Strikes 3 | . . . . . 1 . . . . . . . . . 2 Average Slot Usage (%) 88 | . 97 78 94 92 93 99 89 76 80 88 86 87 73 44 38 Engine 6 | . 13 7 9 9 9 7 6 5 2 . . . . . . Reactor 1 | . . . . . . . . . 2 5 5 5 6 1 2 Treads 14 | . 25 28 22 20 17 23 20 . . . . . . 6 13 Leg 6 | . 1 . . . . . 5 23 23 23 23 23 18 . . Device 3 | . 11 . 5 . . . 5 5 5 5 2 4 7 4 6 Storage 7 | . 14 7 4 10 9 7 6 5 5 5 5 5 3 1 2 Processor 2 | . . . . . . 7 4 5 5 5 5 5 4 9 4 Protection 6 | . . 14 11 9 8 6 5 5 5 5 5 5 3 . . Energy Gun 2 | . . . 10 2 5 . . . . . . . . . . Ballistic Gun 17 | . 27 21 31 35 29 15 . . . . . . . . . Impact Weapon 9 | . . . . 2 12 26 19 17 14 11 11 11 7 . . Piercing Weapon 5 | . . . . . . 2 6 5 11 23 23 22 17 9 5 Naked Turns 11 | . . . . . . . . . . . . . 11 . . Heaviest Build 90 | 10 20 20 25 31 55 55 62 70 73 67 84 73 90 41 41 Greatest Support 150 | 40 40 40 40 46 46 62 90 72 72 72 72 76 101 150 60 Greatest Overweight (x) 1 | . . . . . 1 . . . 1 . 1 1 1 . 1 Average Overweight (x) . | . . . . . . . . . . . . . . . . Largest Inventory Capacity 15 | 8 10 10 8 8 15 15 15 15 15 15 15 15 15 15 15 Average Capacity 11 | 8 8 7 6 7 9 15 15 15 15 15 15 15 12 7 11 Most Carried 15 | 6 10 10 8 8 10 15 15 11 15 15 15 15 15 8 8 Average Carried 10 | 6 7 7 6 7 8 13 13 9 14 15 14 14 12 5 6 Final Capacity 15 | 8 10 5 8 8 15 15 15 15 15 15 15 15 5 15 5 Final Carried 15 | 6 10 5 8 8 10 15 10 11 15 15 15 15 5 8 5 Class Distribution -------------------- 43% | Mutant 32% | Tank 5% | Gunner 5% | Gladiator Dominant Class ---------------- Mutant | -10/Materials Mutant | -10/Mines Tank | -9/Materials Tank | -9/Storage Tank | -8/Materials Gunner | -7/Factory Gladiator | -6/Factory Mutant | -5/Factory Mutant | -5/Upper Caves Mutant | -5/Upper Caves Mutant | -5/Zhirov Mutant | -4/Proximity Caves Derelict-Mutant | -4/Factory Sprinter | -3/Research Mutant | -2/Research Resources | -11 -10 -10 -9 -9 -8 -7 -6 -5 -5 -5 -5 -4 -4 -3 -2 ----------- Run | Jun Mat Min Mat Sto Mat Fac Fac Fac Upp Upp Zhi Pro Fac Res Res Matter Collected 4502 | 209 167 43 374 1176 900 359 185 30 241 24 70 333 118 163 110 Remotely . | . . . . . . . . . . . . . . . . Salvage Created 7458 | . 409 . 682 2256 1429 529 909 257 82 . 91 192 389 163 70 Parts 365 | . 22 . 48 114 74 17 43 5 6 . 2 8 15 7 4 Haulers Intercepted 21 | . 2 . 4 6 5 1 1 1 . . . . . 1 . Recyclers Shooed 3 | . . . . 1 1 1 . . . . . . . . . Parts Field Recycled . | . . . . . . . . . . . . . . . . Retrieved Matter . | . . . . . . . . . . . . . . . . Parts Self-Destructed 7 | . . . . . . . . . 2 . 2 3 . . . Prevented 5 | . . . . . . . . . 5 . . . . . . Kills | -11 -10 -10 -9 -9 -8 -7 -6 -5 -5 -5 -5 -4 -4 -3 -2 ------- Run | Jun Mat Min Mat Sto Mat Fac Fac Fac Upp Upp Zhi Pro Fac Res Res Combat Hostiles Destroyed 135 | . 8 1 15 35 29 9 14 2 . . . 9 12 . 1 Melee 24 | . . 1 . 1 . 2 12 1 . . . 1 5 . 1 Guns 73 | . 8 . 12 33 18 2 . . . . . . . . . Cannons 2 | . . . . . . 2 . . . . . . . . . AOE 29 | . . . 3 1 10 . . . . . . 8 7 . . Classes Destroyed 15 | . 2 1 4 5 1 1 1 . . . . . . . . Worker 5 | . . . . 1 . 1 1 . . . . . . 2 . Builder 7 | . . . . 4 1 . 1 . . . . . . 1 . Hauler 21 | . 2 . 4 6 5 1 1 1 . . . . . 1 . Recycler 9 | . . . . 6 2 1 . . . . . . . . . Mechanic 3 | . . . . 1 . 1 . 1 . . . . . . . Operator 2 | . . . 1 . . . 1 . . . . . . . . Watcher 4 | . . . 1 . 1 1 1 . . . . . . . . Swarmer 29 | . . . 6 3 7 4 . . . . . 4 5 . . Grunt 66 | . 8 . 5 21 13 2 7 2 . . . 4 4 . . Brawler 2 | . . . . . . . 1 . . . . 1 . . . Duelist 4 | . . . . 1 1 . 1 . . . . . 1 . . Sentry 22 | . . . 4 10 7 1 . . . . . . . . . Hunter 5 | . . . . . 1 1 2 . . . . . . . 1 Programmer 6 | . . . . . . 1 3 . . . . . 2 . . Assembled 1 | . . 1 . . . . . . . . . . . . . Commander 1 | . . . . . . . . . 1 . . . . . . Best Kill Streak 11 | . 3 1 6 7 6 5 8 4 . . . 4 11 2 1 Combat Bots Only 11 | . 3 1 4 7 6 4 7 2 . . . 4 11 . 1 Max Kills in Single Turn 6 | . 1 1 3 2 2 1 1 1 1 . . 4 6 1 1 Gunslinging 1 | . . . 1 1 . . . . . . . . . . . Exploded 6 | . . . 3 1 2 . . . . . . 4 6 . . Melee 1 | . . 1 . 1 . 1 1 1 . . . 1 1 . 1 Uniques/NPCs Destroyed . | . . . . . . . . . . . . . . . . Combat | -11 -10 -10 -9 -9 -8 -7 -6 -5 -5 -5 -5 -4 -4 -3 -2 -------- Run | Jun Mat Min Mat Sto Mat Fac Fac Fac Upp Upp Zhi Pro Fac Res Res Damage Taken 12371 | . 530 199 385 749 1052 522 1356 . 39 . . 152 3905 99 3383 Core 2946 | . 153 36 63 71 40 55 123 . . . . . 948 . 1457 Absorbed by Shields . | . . . . . . . . . . . . . . . . Redirected to Shielding 28 | . . 28 . . . . . . . . . . . . . Regen/Repaired (Parts) 654 | . 106 . . 243 305 . . . . . . . . . . Core Remaining (%) 74 | 100 . 24 . 66 92 92 85 . . . . 100 12 100 . Volleys Fired 233 | . 43 . 28 67 70 13 7 . . . . 3 2 . . Largest 5 | . 2 . 4 4 5 4 1 . . . . 1 1 . . Hottest 191 | . 40 . 103 119 191 166 90 . . . . 50 50 . . Shots Fired 694 | . 86 . 99 256 211 30 7 . . . . 3 2 . . Gun 655 | . 86 . 97 255 196 21 . . . . . . . . . Cannon 24 | . . . . 1 7 9 7 . . . . . . . . Launcher 15 | . . . 2 . 8 . . . . . . 3 2 . . Special . | . . . . . . . . . . . . . . . . Kinetic 597 | . 86 . 78 236 176 21 . . . . . . . . . Thermal 81 | . . . 19 19 27 9 7 . . . . . . . . Explosive 15 | . . . 2 . 8 . . . . . . 3 2 . . Electromagnetic 1 | . . . . 1 . . . . . . . . . . . Robot Hit Streak 37 | . 16 . 12 37 18 15 19 . . . . 1 1 . . Robot Miss Streak 10 | . 3 . 3 7 7 2 1 . . . . 9 10 . . Penetration Max 1 | . . . . . 1 1 . . . . . . . . . Secondary Targets 5 | . . . 2 3 . . . . . . . . . . . Max Gunslinging Chain 1 | . . . 1 1 . . . . . . . . . . . Shots Hit Robots 593 | . 67 . 59 166 142 48 45 8 3 . 3 4 31 5 12 Core Hits 303 | . 24 . 35 69 62 10 18 1 2 . 1 36 38 3 4 Critical Kills 2 | . . . . 1 . 1 . . . . . . . . . Critical Parts Destroyed 19 | . 1 . . 2 2 5 6 1 . . . . 2 . . Critical Strikes 31 | . 1 . . 3 4 7 8 1 . . 1 . 3 2 1 Burn 2 | . . . . . 2 . . . . . . . . . . Destroy 5 | . 1 . . . 2 2 . . . . . . . . . Smash 16 | . . . . 3 . 4 6 1 . . . . 2 . . Sever 2 | . . . . . . . 2 . . . . . . . . Impale 6 | . . . . . . 1 . . . . 1 . 1 2 1 Melee Attacks 288 | . 7 . . 39 6 36 68 10 17 4 4 11 66 6 14 Impact 159 | . 7 . . 39 6 33 39 9 12 1 1 2 10 . . Slashing 25 | . . . . . . . 25 . . . . . . . . Piercing 104 | . . . . . . 3 4 1 5 3 3 9 56 6 14 Sneak Attacks 35 | . . . . 10 1 6 5 6 3 . . . . 4 . Combat Hostiles 3 | . . . . . . . . 3 . . . . . . . Follow-up Attacks 52 | . . . . . 2 12 14 2 . . . 2 17 . 3 Damage Inflicted 17063 | . 562 4 1037 3165 3571 1792 2169 620 172 . 172 1339 1710 343 407 Guns 6312 | . 556 . 853 2382 2197 324 . . . . . . . . . Cannons 453 | . . . . . 28 233 192 . . . . . . . . Explosions 3361 | . . . 131 155 1011 . . . . . . 1248 816 . . Melee 6690 | . . . . 575 280 1235 1920 620 172 . 172 91 883 343 399 Ramming 247 | . 6 4 53 53 55 . 57 . . . . . 11 . 8 Kinetic 5798 | . 556 . 740 2214 1964 324 . . . . . . . . . Thermal 967 | . . . 113 168 261 233 192 . . . . . . . . Explosive 3361 | . . . 131 155 1011 . . . . . . 1248 816 . . Electromagnetic . | . . . . . . . . . . . . . . . . Impact 3648 | . . . . 575 280 1139 835 572 . . . . 247 . . Slashing 1036 | . . . . . . . 1036 . . . . . . . . Piercing 2006 | . . . . . . 96 49 48 172 . 172 91 636 343 399 Highest Corruption 6 | . . . 1 2 . 1 4 . . . . . 6 . . Average Corruption 1 | . . . 1 1 . 1 2 . . . . . 5 . . Corruption Purged 5 | . . . . . . 1 4 . . . . . . . . Corruption Blocked . | . . . . . . . . . . . . . . . . Effects 40 | . . . 2 32 . . 2 . . . . . 4 . . Message Errors 9 | . . . . 8 . . 1 . . . . . . . . Matter Fused 5 | . . . . 5 . . . . . . . . . . . Heat Flow Errors 5 | . . . 1 3 . . . . . . . . 1 . . Energy Discharges 7 | . . . . 5 . . 1 . . . . . 1 . . Parts Rejected 1 | . . . . . . . . . . . . . 1 . . Data Loss (minor) 7 | . . . 1 6 . . . . . . . . . . . Data Loss (major) 2 | . . . . 2 . . . . . . . . . . . Misfires 1 | . . . . 1 . . . . . . . . . . . Alerts 3 | . . . . 2 . . . . . . . . 1 . . Overload Shots . | . . . . . . . . . . . . . . . . Overflow Damage 1614 | . . . . 257 184 283 419 74 . . 134 12 140 85 26 Projectiles . | . . . . . . . . . . . . . . . . Explosions 93 | . . . . 9 62 . . . . . . 12 10 . . Melee 1521 | . . . . 248 122 283 419 74 . . 134 . 130 85 26 Knockbacks 13 | . . . . 2 2 2 3 1 . . . . 3 . . Impact 11 | . . . . 2 2 1 3 1 . . . . 2 . . Kinetic . | . . . . . . . . . . . . . . . . Secondary 2 | . . . . . . 1 . . . . . . 1 . . Self-Inflicted Damage 108 | . . . . 48 8 . . . . . . 39 13 . . Shots 5 | . . . . 1 1 . . . . . . 2 1 . . Rammed 52 | . 5 1 15 16 12 . 1 . . . . . . . 2 Targets Rammed 62 | . 6 2 15 17 14 . 4 . . . . . 2 . 2 Kicked 5 | . . . . . . . 3 . . . . . 2 . . Crushed 5 | . 1 1 . 1 2 . . . . . . . . . . Highest Temperature 350 | . 22 . 199 248 350 240 305 . . . . . 52 . . Average Temperature 79 | . 9 . 48 77 99 87 150 . . . . . 18 . . Received Heat Transfer 2106 | . 333 20 114 276 315 69 300 . 18 . . 24 493 9 135 Effects 1 | . . . . . 1 . . . . . . . . . . Energy Bleed 1 | . . . . . 1 . . . . . . . . . . Siege Activations . | . . . . . . . . . . . . . . . . Robots Corrupted . | . . . . . . . . . . . . . . . . Combat Hostiles . | . . . . . . . . . . . . . . . . Parts Fried 25 | . . . . 7 1 5 9 3 . . . . . . . Impact Corruptions 56 | . . . . 10 6 11 19 5 . . . . 5 . . Robots Melted . | . . . . . . . . . . . . . . . . Combat Hostiles . | . . . . . . . . . . . . . . . . Parts Melted 2 | . . . . . 2 . . . . . . . . . . Heat Transferred 1867 | . . . 250 359 703 296 259 . . . . . . . . Parts Sabotaged . | . . . . . . . . . . . . . . . . Parts Stolen . | . . . . . . . . . . . . . . . . Parts Stripped . | . . . . . . . . . . . . . . . . Power Chain Reactions . | . . . . . . . . . . . . . . . . Missiles Intercepted . | . . . . . . . . . . . . . . . . Alert | -11 -10 -10 -9 -9 -8 -7 -6 -5 -5 -5 -5 -4 -4 -3 -2 ------- Run | Jun Mat Min Mat Sto Mat Fac Fac Fac Upp Upp Zhi Pro Fac Res Res Peak Influence 820 | . 208 61 413 551 820 522 347 188 . . . . 368 187 299 Initial 373 | . . 31 23 40 212 373 51 133 . . . . . 150 99 Average 269 | . 102 40 161 308 536 237 125 145 . . . . 114 165 129 Maximum Alert Level 3 | . 1 . 2 2 3 2 1 . . . . . 1 . 1 Low Security (%) 43 | 100 78 100 63 19 5 57 66 100 . . . . 66 100 87 Level 1 30 | . 21 . 34 43 24 28 33 . . . . . 33 . 12 Level 2 19 | . . . 1 37 41 14 . . . . . . . . . Level 3 5 | . . . . . 27 . . . . . . . . . . Level 4 . | . . . . . . . . . . . . . . . . Level 5 . | . . . . . . . . . . . . . . . . High Security . | . . . . . . . . . . . . . . . . Max Security . | . . . . . . . . . . . . . . . . Squads Dispatched 35 | . 3 . 3 12 3 2 3 1 . . . . 4 1 3 Investigation 10 | . 2 . 2 3 1 . 1 . . . . . . 1 . Extermination 4 | . . . . . . 1 2 . . . . . . . 1 Reinforcement 14 | . 1 . 1 2 2 1 . 1 . . . . 4 . 2 Assault 3 | . . . . 3 . . . . . . . . . . . Garrison 4 | . . . . 4 . . . . . . . . . . . Intercept . | . . . . . . . . . . . . . . . . Searches Triggered . | . . . . . . . . . . . . . . . . Construction Impeded 2 | . . . . 1 . . . . . . . . 1 . . Haulers Reinforced 2 | . . . . . . 1 . 1 . . . . . . . Active Scanning Responses . | . . . . . . . . . . . . . . . . Cargo Convoy Interrupts . | . . . . . . . . . . . . . . . . Stealth | -11 -10 -10 -9 -9 -8 -7 -6 -5 -5 -5 -5 -4 -4 -3 -2 --------- Run | Jun Mat Min Mat Sto Mat Fac Fac Fac Upp Upp Zhi Pro Fac Res Res Distress Signals 22 | . 1 . 5 2 3 1 2 . . . . . 6 . 2 Communications Jammed 11 | . . . . . . . . . . . . . 11 . . Distress Signals 11 | . . . . . . . . . . . . . 11 . . Times Spotted 293 | . 12 15 28 49 51 13 19 2 7 . . 9 50 1 37 Peak Tracking Total 28 | . 5 12 5 9 6 4 5 2 3 . . 4 13 1 28 Tactical Retreats 24 | . . 1 1 . 5 1 1 . 5 . . . 6 . 4 Traps | -11 -10 -10 -9 -9 -8 -7 -6 -5 -5 -5 -5 -4 -4 -3 -2 ------- Run | Jun Mat Min Mat Sto Mat Fac Fac Fac Upp Upp Zhi Pro Fac Res Res Traps Triggered 6 | . . . . . 4 2 . . . . . . . . . Indirectly . | . . . . . . . . . . . . . . . . Trap Hack Attempts . | . . . . . . . . . . . . . . . . Triggered . | . . . . . . . . . . . . . . . . Disarmed . | . . . . . . . . . . . . . . . . Reprogrammed 4 | . . . . 4 . . . . . . . . . . . Reused 1 | . . . . 1 . . . . . . . . . . . Traps Extracted . | . . . . . . . . . . . . . . . . Installed . | . . . . . . . . . . . . . . . . Triggered 2 | . . . . 1 1 . . . . . . . . . . Machines | -11 -10 -10 -9 -9 -8 -7 -6 -5 -5 -5 -5 -4 -4 -3 -2 ---------- Run | Jun Mat Min Mat Sto Mat Fac Fac Fac Upp Upp Zhi Pro Fac Res Res Machines Disabled 16 | . 1 . 5 4 3 1 . . 1 . . . 1 . . Max in Single Turn 2 | . 1 . 2 1 1 1 . . 1 . . . 1 . . Machines Repaired . | . . . . . . . . . . . . . . . . Machines Sabotaged . | . . . . . . . . . . . . . . . . Overloaded Fab Kills . | . . . . . . . . . . . . . . . . Hacking | -11 -10 -10 -9 -9 -8 -7 -6 -5 -5 -5 -5 -4 -4 -3 -2 --------- Run | Jun Mat Min Mat Sto Mat Fac Fac Fac Upp Upp Zhi Pro Fac Res Res Machines Accessed 61 | . 5 . 6 14 9 6 4 1 3 1 4 1 4 2 1 Terminals 36 | . 3 . 6 10 4 4 3 . . 1 . 1 2 1 1 Fabricators 1 | . . . . . . . 1 . . . . . . . . Repair Stations 6 | . 1 . . 2 2 . . . . . . . . 1 . Recycling Units 9 | . 1 . . 1 2 2 . 1 . . . . 2 . . Scanalyzers 1 | . . . . . 1 . . . . . . . . . . Garrison Access 1 | . . . . 1 . . . . . . . . . . . Total Hacks 169 | . 18 . 18 47 25 14 7 3 6 1 17 1 7 3 2 Successful 84 | . 8 . 8 21 11 6 1 1 6 1 17 1 3 . . Failed 85 | . 10 . 10 26 14 8 6 2 . . . . 4 3 2 Catastrophic 17 | . 1 . 3 4 1 . 2 1 . . . . . 3 2 Database Lockouts . | . . . . . . . . . . . . . . . . Manual 59 | . 11 . 6 14 12 5 4 1 . . . . 3 1 2 Terminals 95 | . 10 . 18 31 9 11 6 . . 1 . 1 5 1 2 Fabricators 1 | . . . . . . . 1 . . . . . . . . Repair Stations 24 | . 6 . . 7 9 . . . . . . . . 2 . Recycling Units 19 | . 2 . . 5 4 3 . 3 . . . . 2 . . Scanalyzers 3 | . . . . . 3 . . . . . . . . . . Garrison Access 4 | . . . . 4 . . . . . . . . . . . Terminal Hacks 52 | . 4 . 7 10 . 4 1 . 6 1 17 1 1 . . Record 11 | . . . . . . . . . 4 1 5 1 . . . Part Schematic 6 | . . . . 2 . . . . . . 4 . . . . Robot Analysis 9 | . 3 . 2 . . . . . . . 4 . . . . Prototype ID Bank 4 | . . . . . . . . . . . 4 . . . . Open Door 4 | . . . . 2 . . . . 2 . . . . . . Level Access Points 1 | . . . . . . 1 . . . . . . . . . Branch Access Points 1 | . . . 1 . . . . . . . . . . . . Unreport Threat 6 | . . . 2 2 . 2 . . . . . . . . . Locate Traps 5 | . 1 . 1 2 . 1 . . . . . . . . . Reprogram Traps 1 | . . . . 1 . . . . . . . . . . . Zone Layout 4 | . . . 1 1 . . 1 . . . . . 1 . . Fabricator Hacks . | . . . . . . . . . . . . . . . . Repair Station Hacks 14 | . 2 . . 6 6 . . . . . . . . . . Scan Component 7 | . 1 . . 3 3 . . . . . . . . . . Repair 7 | . 1 . . 3 3 . . . . . . . . . . Recycling Unit Hacks 4 | . 1 . . 1 . . . . . . . . 2 . . Retrieve Components 4 | . 1 . . 1 . . . . . . . . 2 . . Scanalyzer 3 | . . . . . 3 . . . . . . . . . . Insert Component 1 | . . . . . 1 . . . . . . . . . . Analyze 2 | . . . . . 2 . . . . . . . . . . Garrison Access Hacks . | . . . . . . . . . . . . . . . . Unauthorized Hacks 11 | . 1 . 1 4 2 2 . 1 . . . . . . . Terminals 6 | . . . 1 3 1 1 . . . . . . . . . Botnet 4 | . . . 1 1 1 1 . . . . . . . . . Disrupt 1 | . . . . 1 . . . . . . . . . . . Operators 1 | . . . . 1 . . . . . . . . . . . Fabricators . | . . . . . . . . . . . . . . . . Repair Stations . | . . . . . . . . . . . . . . . . Recycling Units 5 | . 1 . . 1 1 1 . 1 . . . . . . . Reject 4 | . . . . 1 1 1 . 1 . . . . . . . Tunnel 1 | . 1 . . . . . . . . . . . . . . Scanalyzers . | . . . . . . . . . . . . . . . . Garrison Access . | . . . . . . . . . . . . . . . . Data Cores Recovered 1 | . . . . . . . 1 . . . . . . . . Used . | . . . . . . . . . . . . . . . . Hacking Detections 47 | . 4 . 6 12 8 6 4 1 . 1 . . 2 2 1 Full Trace Events 11 | . 2 . 3 4 . . 1 . . . . . . 1 . Feedback Events 2 | . . . 1 1 . . . . . . . . . . . Corruption 2 | . . . 1 1 . . . . . . . . . . . Feedback Blocked . | . . . . . . . . . . . . . . . . Robot Schematics Acquired . | . . . . . . . . . . . . . . . . Robots Built . | . . . . . . . . . . . . . . . . Authchips . | . . . . . . . . . . . . . . . . Time . | . . . . . . . . . . . . . . . . Total Robot Build Rating . | . . . . . . . . . . . . . . . . Part Schematics Acquired 7 | . . . . 2 1 . . . . . 4 . . . . Parts Built . | . . . . . . . . . . . . . . . . Authchips . | . . . . . . . . . . . . . . . . Time . | . . . . . . . . . . . . . . . . Total Part Build Rating . | . . . . . . . . . . . . . . . . Parts Repaired 7 | . 1 . . 3 3 . . . . . . . . . . Time 268 | . 26 . . 115 127 . . . . . . . . . . Parts Recycled . | . . . . . . . . . . . . . . . . Recycled Matter . | . . . . . . . . . . . . . . . . Retrieved Matter . | . . . . . . . . . . . . . . . . Retrieved Components 24 | . 4 . . 10 . . . . . . . . 10 . . Parts Scanalyzed 1 | . . . . . 1 . . . . . . . . . . Part Schematics Acquired 1 | . . . . . 1 . . . . . . . . . . Parts Damaged . | . . . . . . . . . . . . . . . . Bothacking | -11 -10 -10 -9 -9 -8 -7 -6 -5 -5 -5 -5 -4 -4 -3 -2 ------------ Run | Jun Mat Min Mat Sto Mat Fac Fac Fac Upp Upp Zhi Pro Fac Res Res Used RIF Installer . | . . . . . . . . . . . . . . . . Robots Hacked . | . . . . . . . . . . . . . . . . Non-combat . | . . . . . . . . . . . . . . . . Combat . | . . . . . . . . . . . . . . . . Robot Hacks Applied . | . . . . . . . . . . . . . . . . Relay Couplers Released . | . . . . . . . . . . . . . . . . Fabnet Peak Effective % . | . . . . . . . . . . . . . . . . Robots Rewired . | . . . . . . . . . . . . . . . . Allies Hacked . | . . . . . . . . . . . . . . . . Hacks Repelled . | . . . . . . . . . . . . . . . . Allies | -11 -10 -10 -9 -9 -8 -7 -6 -5 -5 -5 -5 -4 -4 -3 -2 -------- Run | Jun Mat Min Mat Sto Mat Fac Fac Fac Upp Upp Zhi Pro Fac Res Res Total Allies 17 | . . 3 . 12 . . . . 2 . . . . . . Largest Group 10 | . . 3 3 10 7 . . . 2 . . . . . . Highest-Rated Group 88 | . . 40 40 88 56 . . . 62 . . . . . . Highest-Rated Ally 31 | . . 16 16 31 8 . . . 31 . . . . . . Total Orders 4 | . . . 2 2 . . . . . . . . . . . STAY 2 | . . . 1 1 . . . . . . . . . . . FOLLOW 2 | . . . 1 1 . . . . . . . . . . . Ally Attacks 95 | . . . 33 32 14 . . . 16 . . . . . . Total Damage 1375 | . . . 417 479 249 . . . 230 . . . . . . Kills 20 | . . . 6 7 5 . . . 2 . . . . . . Allies Corrupted . | . . . . . . . . . . . . . . . . Allies Melted . | . . . . . . . . . . . . . . . . Intel | -11 -10 -10 -9 -9 -8 -7 -6 -5 -5 -5 -5 -4 -4 -3 -2 ------- Run | Jun Mat Min Mat Sto Mat Fac Fac Fac Upp Upp Zhi Pro Fac Res Res Robot Analysis Total 9 | . 3 . 2 . . . . . . . 4 . . . . Derelict Logs Recovered 7 | . . 1 . . . . . . 1 3 . 2 . . . Drone Launches 2 | . . . . . . . . . . . . . 2 . . Drone Recoveries . | . . . . . . . . . . . . . . . . Exploration | -11 -10 -10 -9 -9 -8 -7 -6 -5 -5 -5 -5 -4 -4 -3 -2 ------------- Run | Jun Mat Min Mat Sto Mat Fac Fac Fac Upp Upp Zhi Pro Fac Res Res Turns Passed 12193 | 11 707 295 1038 2447 1992 932 933 161 1060 704 228 676 607 145 257 Spaces Moved 7165 | 5 303 342 519 1216 847 478 487 78 731 572 162 507 522 125 271 Core 531 | . . 249 . 146 . . . . . . . . 19 . 117 Treads 3787 | 5 303 93 519 1070 847 478 364 . . . . . . 22 86 Legs 2451 | . . . . . . . 123 78 731 572 162 507 278 . . Wheels . | . . . . . . . . . . . . . . . . Hover . | . . . . . . . . . . . . . . . . Flight 396 | . . . . . . . . . . . . . 225 103 68 Fastest Speed 30 | 160 160 50 160 50 157 161 122 122 122 122 122 122 32 32 30 Average Speed 133 | 160 160 79 160 146 169 161 152 122 127 122 124 122 83 52 75 Slowest Speed 250 | 160 160 160 160 160 250 161 163 122 192 122 192 192 193 145 225 Overloaded Moves 35 | . . . . . . . . . . . . . . . 35 Propulsion Burnouts . | . . . . . . . . . . . . . . . . Robots Hopped 4 | . . . . . . . . . . . . . 1 . 3 Cave-ins Triggered 1 | . . . . 1 . . . . . . . . . . . Teleports 1 | . . . . . . . . . . . . . 1 . . Exploration Rate (%) 44 | 2 49 84 47 94 78 12 17 3 77 74 60 74 21 3 15 Regions Visited 15 Branch Regions 6 Pre-discovered Areas 9 | . 1 . . 1 . . . . 1 1 3 2 . . . Known Exits Taken 8 | . . . 1 . . 1 1 1 1 1 1 1 . . . Unknown Exits Taken 7 | 1 1 1 . 1 1 . . . . . . . 1 1 . Scrap Searched 8 | . . 1 . . . . . . 4 2 . 1 . . . Spaces Dug 43 | . . . . 9 20 1 1 . 6 3 . 1 2 . . Terrain Destroyed 193 | . . . 16 21 89 1 1 . 6 3 . 27 29 . . Melee 23 | . . . . 9 . 1 1 . 6 3 . 1 2 . . Projectile 9 | . . . . 1 8 . . . . . . . . . . AOE 161 | . . . 16 11 81 . . . . . . 26 27 . . Terrain Rammed . | . . . . . . . . . . . . . . . . Walls Destroyed . | . . . . . . . . . . . . . . . . Machines Disabled . | . . . . . . . . . . . . . . . . Actions | -11 -10 -10 -9 -9 -8 -7 -6 -5 -5 -5 -5 -4 -4 -3 -2 --------- Run | Jun Mat Min Mat Sto Mat Fac Fac Fac Upp Upp Zhi Pro Fac Res Res Total 8931 | 7 442 363 654 1641 1246 570 603 134 839 574 185 547 642 191 293 Wait 857 | . 56 17 60 202 242 30 26 45 72 . . 15 43 46 3 Move 7143 | 4 302 341 518 1215 846 477 486 77 730 571 161 506 519 124 266 Hop 3 | . . . . . . . . . . . . . 1 . 2 Pick Up 79 | . 9 . 10 14 12 7 6 2 5 . 4 1 5 3 1 Fast Attach 107 | . 3 . 6 26 22 6 5 1 6 . 6 4 13 7 2 Attach 30 | . 2 . 1 3 4 2 3 1 1 . 2 . 5 2 4 Detach 18 | . 1 . . 4 2 1 1 . 2 . 1 . 2 3 1 Swap 75 | 3 6 . 5 18 9 9 10 1 4 . . 7 3 . . Drop 120 | . 7 3 11 36 21 5 12 . 6 . 8 5 4 1 1 Fire 233 | . 43 . 28 67 70 13 7 . . . . 3 2 . . Melee 204 | . 7 . . 39 4 20 43 7 13 3 3 6 43 5 11 Ram . | . . . . . . . . . . . . . . . . Kick 5 | . . . . . . . 3 . . . . . 2 . . Crush 57 | . 6 2 15 17 14 . 1 . . . . . . . 2 Escape Stasis . | . . . . . . . . . . . . . . . . Rewire . | . . . . . . . . . . . . . . . . Trap . | . . . . . . . . . . . . . . . . Miscellaneous . | . . . . . . . . . . . . . . . . Route ------- -11/Junkyard -10/Materials (discovered 3 exits: *Mat / [*Min] / [Sub]) -10/Mines (discovered 3 exits: *Mat x2 / [*Exi]) -9/Materials (discovered 3 exits: *Min x2 / *Sto) -9/Storage -8/Materials -7/Factory (discovered 4 exits: *Fac x4) -6/Factory -5/Factory -5/Upper Caves -5/Upper Caves (discovered 2 exits: *Fac / *Zhi) -5/Zhirov -4/Proximity Caves -4/Factory -3/Research -2/Research History --------- Turn | Location | Event 6 | -11/Junkyard | Discovered new exit (range 3) 12 | -11/Junkyard | Entered Materials 209 | -10/Materials | Discovered new exit (range 14) 232 | -10/Materials | Core integrity fell below 50% 305 | -10/Materials | Build established: Mutant 437 | -10/Materials | Discovered new exit (range 8) 606 | -10/Materials | Repaired Lgt. Treads 664 | -10/Materials | Discovered new exit (range 16) 719 | -10/Materials | Entered Mines 735 | -10/Mines | Learned Materials emergency access door positions 763 | -10/Mines | Discovered new exit (range 5) 856 | -10/Mines | Assembled infested the area 881 | -10/Mines | Deemed a non-threat by the Exiles lab entrance 881 | -10/Mines | Discovered new exit (range 5) 899 | -10/Mines | Assisted by bots powering up and referring to "LRC-V3" 993 | -10/Mines | Discovered new exit (range 8) 1014 | -10/Mines | Entered Materials 1014 | -9/Materials | Accompanied by 3 allies 1014 | -9/Materials | Evolved 2 slots: Weapon x2 1313 | -9/Materials | Discovered new exit (range 12) 1399 | -9/Materials | Build established: Tank 1438 | -9/Materials | Discovered new exit (range 15) 1538 | -9/Materials | Discovered new exit (range 9) 1853 | -9/Materials | Identified exit to Mines 1853 | -9/Materials | Identified exit to Storage 2052 | -9/Materials | Entered Storage 2254 | -9/Storage | Garrison activated, responded to threat 2459 | -9/Storage | Destroyed 7 combat bots 2593 | -9/Storage | Repaired Imp. Assault Rifle 2812 | -9/Storage | Repaired Hrd. Light Armor Plating 2874 | -9/Storage | Learned location of Armory (-4) 2892 | -9/Storage | Discovered new exit (range 16) 3446 | -9/Storage | Met a pair of Derelict thieves 3486 | -9/Storage | Garrison activated, responded to threat 3804 | -9/Storage | Repaired Hrd. Light Armor Plating 3963 | -9/Storage | Assisted by bots powering up and referring to "LRC-V3" 4428 | -9/Storage | Crushed by falling debris 4452 | -9/Storage | First assault squad dispatched 4499 | -9/Storage | Entered Materials 4499 | -8/Materials | Accompanied by 7 allies 4499 | -8/Materials | Evolved 2 slots: Weapon x2 6255 | -8/Materials | Discovered new exit (range 11) 6305 | -8/Materials | Repaired Hrd. Medium Armor Plating 6394 | -8/Materials | Repaired Adv. Treads 6447 | -8/Materials | Repaired Imp. Assault Rifle 6491 | -8/Materials | Entered Factory 6491 | -7/Factory | Evolved 2 slots: Propulsion x1, Utility x1 6800 | -7/Factory | Build established: Gunner 6905 | -7/Factory | Identified exit to Factory 7413 | -7/Factory | Build established: Mutant 7423 | -7/Factory | Entered another Factory area 7423 | -6/Factory | Evolved 2 slots: Propulsion x1, Utility x1 7742 | -6/Factory | Build established: Gladiator 8070 | -6/Factory | Destroyed 7 combat bots 8342 | -6/Factory | Discovered new exit (range 8) 8356 | -6/Factory | Identified exit to Factory 8356 | -6/Factory | Entered another Factory area 8356 | -5/Factory | Evolved 2 slots: Power x1, Utility x1 8377 | -5/Factory | Build established: Mutant 8418 | -5/Factory | Discovered new exit (range 7) 8509 | -5/Factory | Found Prototype Launcher 8509 | -5/Factory | Identified Scatter Rocket Array 8512 | -5/Factory | Identified exit to Upper Caves 8516 | -5/Factory | Found Scatter Rocket Array 8517 | -5/Factory | Entered Upper Caves 8708 | -5/Upper Caves | A Commander dispatched an escort 8726 | -5/Upper Caves | Learned Extension security intel 9001 | -5/Upper Caves | Destroyed EU-E93(g) 9427 | -5/Upper Caves | Discovered new exit (range 16) 9574 | -5/Upper Caves | Identified exit to Upper Caves 9577 | -5/Upper Caves | Entered another Upper Caves area 9578 | -5/Upper Caves | Identified exit to Factory 9601 | -5/Upper Caves | Learned Factory garrison access intel 10066 | -5/Upper Caves | Discovered new exit (range 7) 10072 | -5/Upper Caves | Identified exit to Zhirov 10281 | -5/Upper Caves | Entered Zhirov 10281 | -5/Zhirov | Discovered new exit (range 3) 10303 | -5/Zhirov | Met Zhirov 10330 | -5/Zhirov | Learned location of Quarantine (-3) 10330 | -5/Zhirov | Learned location of Testing (-2) 10330 | -5/Zhirov | Learned location of Command (-1) 10338 | -5/Zhirov | Zhirov requested help retrieving the SGEMP Prototype 10359 | -5/Zhirov | Found Alien Artifact 10359 | -5/Zhirov | Identified Integrated Dissipator 10359 | -5/Zhirov | Installed Integrated Dissipator, increased core heat dissipation (+20) 10459 | -5/Zhirov | Found Alien Artifact 10508 | -5/Zhirov | Identified exit to Proximity Caves 10509 | -5/Zhirov | Entered Proximity Caves 11185 | -4/Proximity Caves | Entered Factory 11185 | -4/Factory | Evolved 2 slots: Propulsion x1, Utility x1 11186 | -4/Factory | Loaded intel: 4 garrison access locations 11610 | -4/Factory | Build established: Derelict-Mutant 11616 | -4/Factory | Lost 4 parts (1p2n1u) 11620 | -4/Factory | Destroyed 11 combat bots 11658 | -4/Factory | Spotted B-86 Titan 11660 | -4/Factory | Released all parts (6) 11661 | -4/Factory | Identified Transdimensional Reconstructor 11661 | -4/Factory | Warped through subspace 11662 | -4/Factory | Core integrity fell below 50% 11690 | -4/Factory | Lost 7 parts (2n2u3w) 11783 | -4/Factory | Discovered new exit (range 11) 11784 | -4/Factory | Core integrity fell below 20% 11792 | -4/Factory | Entered Research 11792 | -3/Research | Evolved 2 slots: Utility x2 11928 | -3/Research | Discovered new exit (range 6) 11937 | -3/Research | Entered another Research area 11937 | -2/Research | Evolved 2 slots: Propulsion x1, Utility x1 12139 | -2/Research | Core integrity fell below 50% 12172 | -2/Research | Core integrity fell below 20% 12184 | -2/Research | Lost 15 parts (1p10n2u2w) 12184 | -2/Research | Spotted B-90 Cyclops 12194 | -2/Research | Destroyed by S-43 Plague with Heavy Machine Gun Last Messages --------------- 12118_ Slug penetrates Wall. 12118_ Penetrated by Slug. 12118_ Impulse Thruster destroyed. 12121_ Penetrated by Slug. 12122_ Hvy. Pick destroyed. 12123_ Slug penetrates Wall. 12128_ Imp. Transmission Jammer destroyed. 12130_ Acquired Antigrav System. 12134_ Cld. Cesium-ion Thruster destroyed. 12135_ Penetrated by Slug. 12135_ Antigrav System destroyed. 12146_ Connecting with Terminal... 12146_ Current location identified: Research 12153_ Adv. Weight Redist. System destroyed. 12165_ M-36 Artificer repairs R-10 Processor. 12170_ M-36 Artificer repairs Xenon Bombardment Thruster. 12182_ Acquired Biometal Leg. 12186_ K-01 Serf cleans the Repair Station. 12187_ ALERT: Rogue bot located, Programmers report to Research Zone 5U. 12192_ ALERT: Cargo convoy en route, clear transfer corridor. Map ----- +----------------------------------------------------+ | ??????# #?? """ ??????????????????????????????? | | ####### #????"" ??????????????????????????????? | | #?????? ??????????????????????????????? | | #?????????????????????????????????????? | | #?????????????????????????????????????? | | #?????????????????????????????????????? | | #?????????????????????????????????????? | | #?####????????????????????????????????? | | "T" ###T ###??????????????????????????????? | | """ #??????????????????????????????? | | #??????????????????????????????? | | #??????????????????????????????? | | +??????????????????????????????? | | ############# #??????????????????????????????? | | ???# """ # #??????????????????????????????? | | ???# "T" # #??????????????????????????????? | | ???# # #??????????????????????????????? | | ???# + #??????????????????????????????? | | ???# # #??????????????????????????????? | | ???# # #??????????????????????????????? | | ???# # #??????????????????????????????? | | ???# # #??????????????????????????????? | | #########/### #?########+######/####?????????? | | #?# p ????????? | | #?# ????????? | | #?# @ ????????? | | """ #?# R k ????????? | | ### ""R" #?# ###/#########???????????? | | ??# "" " #?# su #??? ??????????????????? | | ? ###s #???? ????????????????? | | # R #??????k ???????????????? | | ### #??????? +?????????????? | | ?? ### #???????? #?????????????? | | ?#????# #???????????????????????? | | ??????# ###############???????????????????????? | | ??????# #?????????????????????????????????????? | | ??????# ??????????????????????????????????????? | | ??????# ??????????????????????????????????????? | | ??????# ??????????????????????????????????????? | | ??????# ??????????????????????????????????????? | | ?????????????????????????????????????????????????? | | ?????????????????????????????????????????????????? | | ?????????????????????????????????????????????????? | | ?????????????????????????????????????????????????? | | ?????????????????????????????????????????????????? | | ?????????????????????????????????????????????????? | | ?????????????????????????????????????????????????? | | ?????????????????????????????????????????????????? | | ?????????????????????????????????????????????????? | | ?????????????????????????????????????????????????? | +----------------------------------------------------+ Best States ------------- Heat Dissipation 69 Energy Generation 41 Energy Capacity 410 Matter Stores 300 Matter Capacity 300 Sight Range 16 Robot Scan Range 15 Terrain Scan Range 14 Terrain Scan Density 10 Jamming Range 14 Corruption Block 11 Armor Coverage 600 Power Shielding 90 Propulsion Shielding 33 Melee Speed Boost 20 Evasion (%) 63 Targeting Accuracy 8 Armor Integrity Analysis 40 Recoil Reduction 5 Energy Filtering 30 Item Schematics ----------------- Med. Treads | -9/Storage | Hacked Huge Storage Unit | -9/Storage | Hacked Arm. Treads | -8/Materials | Scanalyzed Assault Drone Bay | -5/Zhirov | Free Exp. Heat Sink | -5/Zhirov | Free Exp. Optical Array | -5/Zhirov | Free Imp. Arc Thrower | -5/Zhirov | Free Robot Schematics ------------------ None Fabricated ------------ Nothing Alien Tech Used ----------------- Integrated Dissipator Transdimensional Reconstructor Achievements -------------- None Challenges ------------ None Game ------ Seed DecoderAssembledBeamcaster Manual? 0 Play Time 01:13:32 Cumulative 1354.5 hours Start 2023.07.16 @ 18:49:51 End 2023.07.16 @ 20:01:15 Sessions 1 Manual Loads 0 Difficulty Rogue Special Mode None Game No. 964 Rogue 960 Adventurer 4 Explorer 0 Win Type - Total 154 Types 114/10/10/7/2/1/1/5/4 Lore% 95 Gallery% 98 Achievement% 98 Wizard Run 0 Options --------- ASCII 0 Keyboard 1 Movement Vi Keybinds 0 Fullscreen 0 Font 20/X11 Map View 76x50 Tactical HUD 1 Map Filters NONE Filters NONE Steam 1 RUN: e357d680-34f6-4209-b641-c1603fb21ed3